bitfinex/quotes_SOLUSD_20250920
["timestamp","ask_amount","ask_price","bid_price","bid_amount"]
[1758354228860,0.1,239.84,239.83,21.91465956]
[1758354229873,0.79,239.84,239.83,21.91465956]
[1758354231064,0.79,239.84,239.83,19.71465956]
[1758354231455,0.1,239.84,239.83,19.71465956]
[1758354231843,0.79,239.84,239.83,32.50883409]
[1758354234455,0.1,239.84,239.83,32.50883409]
[1758354235668,0.1,239.84,239.83,30.55938868]
[1758354235867,0.1,239.84,239.83,32.50883409]
[1758354238876,0.8,239.84,239.83,32.50883409]
[1758354239048,0.8,239.84,239.83,30.55938868]
[1758354239672,0.1,239.84,239.83,32.50883409]
[1758354241276,0.8,239.84,239.83,32.50883409]
[1758354242171,0.1,239.84,239.83,32.50883409]
[1758354245569,0.1,239.84,239.83,30.55938868]
[1758354248979,0.1,239.84,239.83,31.21938868]
[1758354249189,0.1,239.84,239.83,31.50371182]
[1758354251469,0.1,239.84,239.83,93.40371182]
[1758354257864,0.1,239.84,239.83,95.0745905]
[1758354260007,0.1,239.84,239.83,93.40371182]
[1758354264296,0.1,239.84,239.83,96.30371182]
[1758354265797,0.1,239.84,239.83,93.40371182]
[1758354267202,0.1,239.84,239.83,95.07459049]
[1758354267576,0.1,239.84,239.83,93.40371182]
[1758354269097,0.8,239.84,239.83,92.45938868]
[1758354269408,0.8,239.84,239.83,30.55938868]
[1758354270516,3.61416379,239.84,239.83,26.38976854]
[1758354270800,3.61416379,239.84,239.83,30.55938868]
[1758354270977,2.91416379,239.84,239.83,30.55938868]
[1758354271612,3.61416379,239.84,239.83,30.55938868]
[1758354272399,3.61416379,239.84,239.83,26.38976854]
[1758354272605,3.61416379,239.84,239.79,7.08441961]
[1758354272907,3.51416379,239.83,239.8,13.59559401]
[1758354273203,3.51416379,239.82,239.8,13.59559401]
[1758354273412,0.1,239.84,239.8,13.59559401]
[1758354273413,3.51416379,239.81,239.8,13.59559401]
[1758354273615,2.81416379,239.81,239.8,14.52991715]
[1758354273904,0.1,239.84,239.81,0.28432314]
[1758354274105,0.1,239.84,239.83,17.76521415]
[1758354274479,0.1,239.84,239.83,19.01252761]
[1758354274982,0.8,239.84,239.83,19.01252761]
[1758354275581,0.1,239.84,239.83,17.76521415]
[1758354275798,0.1,239.84,239.83,19.01252761]
[1758354276192,0.1,239.84,239.83,19.94685075]
[1758354276393,0.1,239.84,239.83,21.61765963]
[1758354281192,0.1,239.84,239.83,83.51765963]
[1758354283913,0.1,239.84,239.83,82.27034617]
[1758354290216,0.1,239.84,239.83,81.62034617]
[1758354290795,0.1,239.84,239.83,82.86765963]
[1758354293503,0.1,239.84,239.83,19.43602303]
[1758354293816,0.8,239.84,239.83,17.76521415]
[1758354294323,0.8,239.84,239.83,19.01252761]
[1758354298323,0.8,239.84,239.83,17.76521415]
[1758354298523,0.8,239.84,239.83,19.01252761]
[1758354301318,0.1,239.84,239.83,19.01252761]
[1758354301627,0.82,239.84,239.81,13.59559401]
[1758354301809,3.53111801,239.83,239.81,13.59559401]
[1758354302010,0.72,239.82,239.79,12.22979926]
[1758354302217,3.53099527,239.81,239.79,13.59559401]
[1758354302421,0.72,239.8,239.79,13.59559401]
[1758354302614,0.72,239.8,239.78,13.59559401]
[1758354302912,0.72,239.79,239.78,13.59559401]
[1758354303315,0.72,239.79,239.78,17.76608362]
[1758354304414,2.80972175,239.82,239.78,18.46608362]
[1758354304721,0.1,239.84,239.78,18.46608362]
[1758354304722,0.1,239.84,239.83,13.59559401]
[1758354304951,2.90972175,239.84,239.83,13.59559401]
[1758354305132,0.1,239.84,239.83,17.76521415]
[1758354305328,2.90972175,239.84,239.83,17.76521415]
[1758354305510,0.1,239.84,239.83,19.01252761]
[1758354305710,2.90972175,239.84,239.83,19.01252761]
[1758354305911,0.1,239.84,239.83,19.01252761]
[1758354306110,2.90972175,239.84,239.83,19.01252761]
[1758354306316,0.1,239.84,239.83,13.59559401]
[1758354306526,3.62972175,239.84,239.82,14.84290747]
[1758354306831,0.82,239.84,239.82,14.84290747]
[1758354307017,3.62972175,239.84,239.82,14.84290747]
[1758354307219,0.72,239.83,239.8,13.59559401]
[1758354307428,0.72,239.83,239.8,14.84290747]
[1758354308738,0.72,239.83,239.8,19.01290477]
[1758354311346,0.1,239.84,239.8,19.71290477]
[1758354311552,0.82,239.84,239.8,19.71290477]
[1758354311849,3.52972175,239.83,239.79,13.59559401]
[1758354312147,3.52972175,239.83,239.77,61.9]
[1758354312148,3.52972175,239.82,239.75,13.59559401]
[1758354312458,0.72,239.81,239.75,13.59559401]
[1758354312627,0.72,239.8,239.75,13.59559401]
[1758354312830,0.72,239.79,239.75,27.04772097]
[1758354313047,2.80972175,239.82,239.75,26.34772097]
[1758354313347,0.72,239.81,239.77,13.59559401]
[1758354313526,0.72,239.81,239.77,14.29559401]
[1758354313934,6.97940014,239.83,239.77,17.76624719]
[1758354314127,0.72,239.82,239.77,17.76624719]
[1758354314452,0.72,239.81,239.77,17.76624719]
[1758354314633,0.72,239.8,239.77,17.76624719]
[1758354317847,0.72,239.79,239.75,13.59559401]
[1758354318060,0.72,239.78,239.75,13.59559401]
[1758354323556,37.33751001,239.8,239.75,14.29559401]
[1758354323744,0.72,239.8,239.76,0.7]
[1758354323950,36.6172816,239.81,239.76,0.7]
[1758354324444,37.3372816,239.81,239.77,0.7]
[1758354324641,31.2,239.8,239.77,0.7]
[1758354324839,31.2,239.8,239.78,0.7]
[1758354325041,31.2,239.8,239.79,0.7]
[1758354325230,31.2,239.8,239.77,0.7]
[1758354325430,31.92,239.8,239.76,13.59559401]
[1758354325644,31.92,239.8,239.76,18.46639632]
[1758354325827,31.2,239.8,239.76,18.46639632]
[1758354326358,31.2,239.8,239.77,0.71]
[1758354326749,31.92,239.8,239.76,13.59559401]
[1758354326933,31.92,239.8,239.76,14.30559401]
[1758354327760,31.92,239.8,239.76,18.47640606]
[1758354328352,31.2,239.8,239.77,0.71]
[1758354329850,31.2,239.8,239.77,4.88055847]
[1758354332262,31.92,239.8,239.76,13.59559401]
[1758354332449,31.92,239.8,239.76,14.30559401]
[1758354334062,31.2,239.8,239.76,13.59559401]
[1758354334244,0.72,239.79,239.76,13.59559401]
[1758354334756,0.72,239.79,239.76,14.30559401]
[1758354334977,31.2,239.8,239.76,14.30559401]
[1758354335159,31.92,239.8,239.76,14.30559401]
[1758354335551,0.72,239.79,239.76,13.59559401]
[1758354337662,0.72,239.79,239.75,0.71]
[1758354337878,0.72,239.78,239.73,13.44316029]
[1758354338050,0.72,239.77,239.73,13.44316029]
[1758354339068,0.72,239.77,239.73,16.90448303]
[1758354339249,0.72,239.77,239.74,0.71]
[1758354340366,2.80795289,239.79,239.74,0.71]
[1758354341059,2.80795289,239.79,239.74,4.88113166]
[1758354341264,0.72,239.78,239.74,4.88113166]
[1758354342484,0.72,239.77,239.73,16.90450058]
[1758354342672,0.72,239.77,239.73,4.88134029]
[1758354342852,0.72,239.77,239.73,4.17134029]
[1758354343056,5.4797932,239.78,239.74,0.71]
[1758354344052,5.4797932,239.78,239.74,4.88115315]
[1758354344865,8.93034986,239.78,239.72,13.59559401]
[1758354345067,0.72,239.77,239.72,25.95870513]
[1758354345367,0.72,239.77,239.73,0.71]
[1758354346075,3.53035024,239.77,239.73,0.71]
[1758354349178,3.53035024,239.77,239.73,4.88135324]
[1758354350567,2.81035024,239.77,239.74,4.8810847]
[1758354350772,2.81035024,239.77,239.75,0.71]
[1758354351162,2.81035024,239.78,239.75,0.71]
[1758354351372,2.81035024,239.77,239.75,0.71]
[1758354351689,2.81035024,239.78,239.75,0.71]
[1758354351878,2.81035024,239.77,239.75,0.71]
[1758354352185,2.81035024,239.78,239.74,4.1710847]
[1758354352496,2.81035024,239.77,239.74,4.8810847]
[1758354354083,0.72,239.78,239.74,4.8810847]
[1758354354279,2.8120683,239.77,239.74,4.8810847]
[1758354354475,0.72,239.78,239.74,4.8810847]
[1758354354668,2.8120683,239.77,239.74,4.8810847]
[1758354354870,0.72,239.78,239.74,4.8810847]
[1758354355075,2.8120683,239.77,239.74,4.8810847]
[1758354355277,0.72,239.78,239.74,4.8810847]
[1758354355476,2.8124982,239.77,239.74,4.8810847]
[1758354355781,0.72,239.78,239.74,4.8810847]
[1758354355968,2.8124982,239.77,239.74,4.8810847]
[1758354356167,0.72,239.78,239.74,4.8810847]
[1758354356372,2.81301518,239.77,239.74,4.8810847]
[1758354356572,0.72,239.78,239.74,4.8810847]
[1758354356784,2.81301482,239.77,239.74,4.8810847]
[1758354356977,0.72,239.78,239.74,4.8810847]
[1758354357282,2.81301482,239.77,239.74,4.8810847]
[1758354357479,1.95012449,239.79,239.74,4.1710847]
[1758354357683,4.76328093,239.78,239.75,0.67]
[1758354357883,2.81315644,239.77,239.75,0.67]
[1758354358077,2.67012449,239.78,239.75,0.67]
[1758354358282,2.81318605,239.77,239.75,0.67]
[1758354358589,2.67012449,239.78,239.75,0.67]
[1758354358759,2.81318605,239.77,239.75,0.67]
[1758354358962,2.67012449,239.78,239.75,0.67]
[1758354359274,2.81318641,239.77,239.75,0.67]
[1758354359475,1.95012449,239.78,239.75,0.67]
[1758354359786,2.81326917,239.77,239.75,0.67]
[1758354359973,2.67012449,239.78,239.74,4.8410847]
[1758354360174,2.81326917,239.77,239.74,4.8410847]
[1758354360387,2.67012449,239.78,239.74,4.8410847]
[1758354360589,2.81333247,239.77,239.73,17.76695345]
[1758354360781,2.67012449,239.78,239.74,0.71]
[1758354361085,2.81333284,239.77,239.74,0.71]
[1758354361385,2.67012449,239.78,239.74,0.71]
[1758354361589,2.81340744,239.77,239.74,0.71]
[1758354361783,2.67012449,239.78,239.74,4.88106731]
[1758354361981,2.81340744,239.77,239.74,4.88106731]
[1758354362190,2.81349038,239.76,239.74,4.88106731]
[1758354362485,1.95012449,239.78,239.75,0.71]
[1758354362689,2.81349578,239.77,239.75,0.71]
[1758354362863,2.81349578,239.76,239.75,0.71]
[1758354363060,3.52349578,239.76,239.72,13.07311112]
[1758354363364,0.71,239.76,239.72,0.71]
[1758354363563,0.71,239.77,239.73,0.71]
[1758354363774,2.81346382,239.76,239.73,0.71]
[1758354363989,0.71,239.77,239.73,0.71]
[1758354364287,2.66012449,239.78,239.71,28.19657017]
[1758354364480,2.81343454,239.77,239.74,0.71]
[1758354364679,2.66012449,239.78,239.74,0.71]
[1758354365011,2.8134338,239.77,239.74,0.71]
[1758354365296,2.66012449,239.78,239.74,0.71]
[1758354365466,2.81341045,239.77,239.74,0.71]
[1758354365765,2.66012449,239.78,239.74,0.71]
[1758354366064,2.81341045,239.77,239.74,0.71]
[1758354366264,2.66012449,239.78,239.74,0.71]
[1758354366586,2.8133921,239.77,239.74,0.71]
[1758354366783,2.66012449,239.78,239.74,0.71]
[1758354367102,2.8133921,239.77,239.74,0.71]
[1758354367391,2.66012449,239.78,239.74,0.71]
[1758354367587,2.81337853,239.77,239.74,0.71]
[1758354367764,2.66012449,239.78,239.74,0.71]
[1758354367960,2.81337816,239.77,239.74,0.71]
[1758354368159,2.66012449,239.78,239.74,0.71]
[1758354368391,2.81334205,239.77,239.74,0.71]
[1758354368593,2.66012449,239.78,239.74,0.71]
[1758354368886,2.81336918,239.77,239.74,0.71]
[1758354369089,2.66012449,239.78,239.74,0.71]
[1758354369286,2.81333625,239.77,239.74,0.71]
[1758354369464,2.81333625,239.76,239.74,0.71]
[1758354369667,0.71,239.77,239.74,0.71]
[1758354369976,2.81336632,239.76,239.74,0.71]
[1758354370165,0.71,239.77,239.74,0.71]
[1758354370366,2.81333677,239.76,239.74,0.71]
[1758354370574,0.71,239.77,239.74,0.71]
[1758354370775,2.81336821,239.76,239.74,0.71]
[1758354370976,0.71,239.77,239.74,0.71]
[1758354371176,2.81336858,239.76,239.74,0.71]
[1758354371376,0.71,239.77,239.74,0.71]
[1758354371576,2.81337355,239.76,239.74,0.71]
[1758354371795,0.71,239.77,239.74,0.71]
[1758354372090,2.81337391,239.76,239.74,0.71]
[1758354372396,0.71,239.77,239.74,0.71]
[1758354372573,2.81338318,239.76,239.74,0.71]
[1758354372774,0.71,239.77,239.74,0.71]
[1758354372985,2.81338355,239.76,239.74,0.71]
[1758354373198,0.71,239.77,239.74,0.71]
[1758354373374,2.81345458,239.76,239.73,0.71]
[1758354373566,0.71,239.77,239.73,0.71]
[1758354373769,2.81349246,239.76,239.73,0.71]
[1758354373970,0.71,239.77,239.73,0.71]
[1758354374170,2.81349246,239.76,239.73,0.71]
[1758354374368,0.71,239.77,239.73,0.71]
[1758354374597,2.81374104,239.76,239.73,0.71]
[1758354374798,0.71,239.77,239.73,4.88130665]
[1758354375006,2.81374104,239.76,239.74,14.30559401]
[1758354375294,4.76386553,239.8,239.76,13.59559401]
[1758354375493,2.81374104,239.79,239.77,0.71]
[1758354375697,2.81374104,239.78,239.77,0.71]
[1758354375998,5.47386553,239.78,239.73,4.88130665]
[1758354376185,2.81374104,239.77,239.74,0.71]
[1758354376392,2.81374104,239.76,239.74,0.71]
[1758354376698,2.66012449,239.78,239.74,0.71]
[1758354376878,2.81428603,239.77,239.74,0.71]
[1758354377071,2.81428603,239.76,239.74,4.88117225]
[1758354377294,1.95012449,239.79,239.75,0.71]
[1758354377500,2.81464764,239.78,239.75,0.71]
[1758354377795,2.81464764,239.77,239.75,0.71]
[1758354378000,2.81464764,239.76,239.75,0.71]
[1758354378991,2.81464764,239.76,239.75,4.88101147]
[1758354386200,2.81464764,239.76,239.73,13.59559401]
[1758354386379,2.81464764,239.75,239.73,13.59559401]
[1758354386579,2.64012449,239.77,239.73,14.30559401]
[1758354386779,2.8170959,239.76,239.74,0.71]
[1758354386999,2.8170959,239.75,239.74,14.30559401]
[1758354387307,2.8170959,239.75,239.74,18.47677946]
[1758354391801,2.8170959,239.75,239.74,14.30559401]
[1758354392005,2.8170959,239.75,239.74,13.59559401]
[1758354392602,2.8170959,239.75,239.74,14.30559401]
[1758354393303,2.8170959,239.75,239.74,13.59559401]
[1758354395609,2.8170959,239.75,239.74,14.30559401]
[1758354395999,2.8170959,239.75,239.74,13.59559401]
[1758354396399,2.8170959,239.75,239.74,14.30559401]
[1758354397307,2.8170959,239.75,239.74,13.59559401]
[1758354399216,3.5070959,239.75,239.71,0.71]
[1758354399394,4.86106231,239.75,239.72,13.59559401]
[1758354399595,2.81727728,239.74,239.72,13.59559401]
[1758354399795,6.10956816,239.75,239.72,13.59559401]
[1758354400017,2.81727691,239.74,239.71,0.71]
[1758354400218,6.10956816,239.75,239.71,0.71]
[1758354400393,2.81706578,239.74,239.71,0.71]
[1758354400595,1.24850585,239.75,239.72,0.71]
[1758354400901,2.81706542,239.74,239.72,0.71]
[1758354401101,1.24850585,239.75,239.72,0.71]
[1758354401312,2.81705041,239.74,239.72,0.71]
[1758354401516,1.24850585,239.75,239.72,0.71]
[1758354401718,2.81689334,239.74,239.72,0.71]
[1758354401912,1.24850585,239.75,239.72,0.71]
[1758354402214,2.81689334,239.74,239.72,0.71]
[1758354402416,1.24850585,239.75,239.72,0.71]
[1758354403019,2.81667757,239.74,239.72,0.71]
[1758354403207,5.41954772,239.75,239.72,0.71]
[1758354403409,2.8166591,239.74,239.72,0.71]
[1758354403620,4.17104187,239.75,239.73,0.71]
[1758354403824,2.81663022,239.74,239.72,0.71]
[1758354404009,4.17104187,239.75,239.72,0.71]
[1758354404210,2.81661185,239.74,239.72,0.71]
[1758354404409,4.17104187,239.75,239.72,0.71]
[1758354404604,2.81658683,239.74,239.72,0.71]
[1758354404906,6.10936536,239.76,239.72,0.71]
[1758354405106,2.81658647,239.75,239.72,0.71]
[1758354405317,2.81658647,239.74,239.72,0.71]
[1758354405524,1.24850585,239.76,239.73,0.71]
[1758354405818,2.81654578,239.75,239.71,18.47725997]
[1758354406031,1.93850585,239.76,239.72,0.71]
[1758354406205,2.81654614,239.75,239.73,0.71]
[1758354406405,1.24850585,239.76,239.71,17.76725997]
[1758354406711,2.81653463,239.75,239.72,0.71]
[1758354407018,1.93850585,239.76,239.72,4.17151083]
[1758354407221,4.17063539,239.78,239.73,0.71]
[1758354407222,2.81653463,239.75,239.73,0.71]
[1758354407399,5.41914124,239.78,239.74,0.71]
[1758354407721,2.81652188,239.77,239.74,0.71]
[1758354407920,2.81652188,239.76,239.74,0.71]
[1758354408123,2.81652188,239.75,239.74,0.71]
[1758354410421,2.81652188,239.75,239.72,4.17153345]
[1758354410626,6.10914124,239.78,239.73,0.71]
[1758354410925,3.50649629,239.77,239.74,0.71]
[1758354411100,2.81649629,239.76,239.74,0.71]
[1758354411416,2.81649629,239.75,239.74,0.71]
[1758354411622,2.81649629,239.75,239.73,13.59559401]
[1758354411930,1.24850585,239.78,239.73,13.59559401]
[1758354412218,2.81649007,239.77,239.74,0.71]
[1758354412523,2.81649007,239.76,239.74,0.71]
[1758354412730,2.81649007,239.75,239.74,0.71]
[1758354413627,2.81649007,239.75,239.73,17.76684657]
[1758354413800,0.69,239.77,239.73,18.47684657]
[1758354414000,2.81642374,239.76,239.73,18.47684657]
[1758354414211,2.81642374,239.75,239.73,17.76684657]
[1758354414417,1.93850585,239.79,239.74,0.71]
[1758354414723,3.50642244,239.78,239.74,0.71]
[1758354414912,2.81642244,239.77,239.74,0.71]
[1758354415112,2.81642244,239.76,239.75,14.30559401]
[1758354415426,2.81642244,239.79,239.76,13.59559401]
[1758354415632,31.2,239.81,239.77,0.71]
[1758354415826,2.81509283,239.8,239.77,4.88063238]
[1758354416007,2.81509283,239.79,239.78,0.67]
[1758354416208,2.81509283,239.79,239.77,4.17063238]
[1758354416403,31.2,239.81,239.77,4.17063238]
[1758354416623,2.81436659,239.8,239.77,4.17063238]
[1758354416815,31.2,239.81,239.78,0.67]
[1758354417128,2.81436623,239.8,239.78,0.67]
[1758354417428,31.2,239.81,239.78,0.67]
[1758354417729,2.8137922,239.8,239.78,0.67]
[1758354417902,31.2,239.81,239.78,0.67]
[1758354418106,2.8137922,239.8,239.78,0.67]
[1758354418403,31.2,239.81,239.78,0.67]
[1758354418617,2.81331313,239.8,239.78,0.67]
[1758354418814,31.2,239.81,239.78,0.67]
[1758354419017,2.81331313,239.8,239.77,4.17061722]
[1758354419305,31.2,239.81,239.77,4.17061722]
[1758354419306,31.2,239.81,239.78,0.67]
[1758354419508,2.81290272,239.8,239.78,0.67]
[1758354419719,31.2,239.81,239.78,0.67]
[1758354419921,2.81290199,239.8,239.78,0.67]
[1758354420129,31.2,239.81,239.78,0.67]
[1758354420327,2.81290236,239.8,239.78,0.67]
[1758354420626,31.2,239.81,239.78,0.67]
[1758354420809,2.81293379,239.8,239.78,0.67]
[1758354421123,31.91,239.81,239.76,18.42641155]
[1758354421303,3.52293452,239.8,239.76,13.59559401]
[1758354421504,4.77144037,239.79,239.74,13.59559401]
[1758354421710,3.5228655,239.78,239.74,13.59559401]
[1758354421937,2.8128655,239.77,239.74,14.25559401]
[1758354422106,1.95850585,239.78,239.74,14.25559401]
[1758354423117,6.12901985,239.78,239.74,14.25559401]
[1758354423824,3.5228366,239.77,239.72,0.66]
[1758354424032,2.8128366,239.76,239.73,13.59559401]
[1758354424211,0.71,239.77,239.73,13.59559401]
[1758354424412,0.71,239.77,239.73,14.25559401]
[1758354424812,4.88078305,239.77,239.73,14.25559401]
[1758354425510,4.88078305,239.77,239.68,0.66]
[1758354425511,4.77143721,239.76,239.68,0.66]
[1758354425727,2.81293136,239.75,239.69,13.59559401]
[1758354425935,2.81293136,239.74,239.69,14.25559401]
[1758354426118,0.71,239.74,239.7,0.66]
[1758354426922,4.17117184,239.75,239.71,0.66]
[1758354427120,2.81303714,239.74,239.71,0.66]
[1758354427339,0.71,239.74,239.7,0.66]
[1758354428836,4.88128251,239.74,239.7,0.66]
[1758354431539,4.17128251,239.74,239.71,0.66]
[1758354432142,18.67045499,239.76,239.72,0.66]
[1758354432321,2.81225851,239.75,239.72,0.66]
[1758354433531,6.98328455,239.75,239.69,17.76764666]
[1758354433730,7.69328455,239.75,239.7,0.66]
[1758354433930,6.98328455,239.75,239.7,0.66]
[1758354434246,4.88102604,239.75,239.69,17.76764666]
[1758354434440,4.88102604,239.75,239.7,0.66]
[1758354434441,7.69309861,239.75,239.7,0.66]
[1758354434631,7.69309861,239.75,239.71,0.66]
[1758354436045,6.98309861,239.75,239.71,0.66]
[1758354436248,7.69309861,239.75,239.71,0.66]
[1758354436544,6.98309861,239.75,239.69,17.76764666]
[1758354436748,0.71,239.74,239.7,0.66]
[1758354439568,2.81207257,239.75,239.71,14.25559401]
[1758354439725,0.71,239.81,239.76,4.1708375]
[1758354440082,12.53839885,239.82,239.77,14.25559401]
[1758354440225,2.81106127,239.81,239.78,0.66]
[1758354440546,0.71,239.81,239.77,13.59559401]
[1758354440721,31.2,239.82,239.77,13.59559401]
[1758354440722,31.2,239.82,239.77,14.25559401]
[1758354440927,31.2,239.82,239.78,0.66]
[1758354442834,31.2,239.82,239.79,0.66]
[1758354443037,31.2,239.8,239.79,0.66]
[1758354443423,12.63682693,239.84,239.79,0.66]
[1758354443626,2.8093128,239.83,239.8,13.59559401]
[1758354443828,2.8093128,239.83,239.81,0.66]
[1758354444031,2.8093128,239.83,239.82,0.66]
[1758354444431,0.1,239.84,239.82,0.66]
[1758354444642,2.9093128,239.84,239.8,18.42570027]
[1758354444854,0.1,239.84,239.81,0.66]
[1758354445060,2.9093128,239.84,239.81,0.66]
[1758354445231,0.1,239.84,239.81,0.66]
[1758354445433,2.9093128,239.84,239.81,0.66]
[1758354445730,0.1,239.84,239.81,0.66]
[1758354445934,2.9093128,239.84,239.81,0.66]
[1758354446148,0.1,239.84,239.81,0.66]
[1758354446340,2.9093128,239.84,239.81,0.66]
[1758354446542,0.1,239.84,239.81,0.66]
[1758354446750,2.9093128,239.84,239.81,0.66]
[1758354446958,0.1,239.84,239.81,0.66]
[1758354447258,2.9093128,239.84,239.81,0.66]
[1758354447451,0.1,239.84,239.81,0.66]
[1758354447757,2.9093128,239.84,239.81,0.66]
[1758354447961,0.1,239.84,239.81,0.66]
[1758354448153,2.9093128,239.84,239.81,0.66]
[1758354448345,0.1,239.84,239.81,0.66]
[1758354449047,0.1,239.84,239.8,17.76570027]
[1758354449243,0.1,239.84,239.82,14.84409986]
[1758354449662,0.1,239.84,239.83,14.26559401]
[1758354450667,0.1,239.84,239.83,18.43521415]
[1758354452539,0.1,239.84,239.83,13.59559401]
[1758354452741,4.95944756,239.84,239.8,13.59559401]
[1758354452942,0.69,239.83,239.78,13.59559401]
[1758354453153,0.69,239.82,239.78,14.26559401]
[1758354453657,20.85909259,239.84,239.78,14.26559401]
[1758354453866,17.49575061,239.84,239.78,14.26559401]
[1758354454066,4.95944756,239.84,239.78,14.26559401]
[1758354454267,0.1,239.84,239.8,13.59559401]
[1758354454568,0.1,239.84,239.81,0.67]
[1758354454767,0.1,239.84,239.82,0.67]
[1758354455270,0.1,239.84,239.8,20.38536252]
[1758354455463,0.1,239.84,239.81,0.67]
[1758354456453,0.1,239.84,239.82,0.67]
[1758354457169,0.1,239.84,239.8,20.38536252]
[1758354457378,0.1,239.84,239.81,0.67]
[1758354458869,0.1,239.84,239.81,4.16991911]
[1758354459069,0.1,239.84,239.82,0.67]
[1758354461672,0.1,239.84,239.81,4.16991911]
[1758354461986,0.1,239.84,239.81,4.83991911]
[1758354464292,0.1,239.84,239.81,4.16991911]
[1758354464591,0.1,239.84,239.82,0.67]
[1758354466491,0.1,239.84,239.83,13.59559401]
[1758354466797,0.1,239.84,239.83,18.43521415]
[1758354481494,0.1,239.84,239.83,13.59559401]
[1758354481672,0.8,239.84,239.81,17.76555736]
[1758354482385,3.60382591,239.84,239.81,18.44555736]
[1758354482591,0.1,239.84,239.81,18.44555736]
[1758354482795,2.90382591,239.84,239.81,18.44555736]
[1758354482999,0.1,239.84,239.82,0.68]
[1758354483194,2.90382591,239.84,239.83,0.68]
[1758354484779,2.90382591,239.84,239.81,20.39519519]
[1758354484980,2.80382591,239.83,239.82,14.27559401]
[1758354485188,2.80382591,239.83,239.82,13.59559401]
[1758354487001,2.80382591,239.83,239.82,14.27559401]
[1758354487389,2.80382591,239.83,239.82,18.44538802]
[1758354487891,2.80382591,239.83,239.82,14.27559401]
[1758354488496,2.80382591,239.83,239.82,18.44538802]
[1758354489080,0.1,239.84,239.82,18.44538802]
[1758354489604,0.1,239.84,239.83,0.68]
[1758354489903,2.91356896,239.84,239.82,18.44538802]
[1758354490110,0.1,239.84,239.82,18.44538802]
[1758354492593,0.1,239.84,239.82,17.76538802]
[1758354493103,0.1,239.84,239.82,18.44538802]
[1758354494412,2.81388118,239.83,239.82,18.44538802]
[1758354496612,0.1,239.84,239.82,18.44538802]
[1758354496812,0.1,239.84,239.83,13.59559401]
[1758354496988,2.91404475,239.84,239.83,13.59559401]
[1758354498510,2.91404475,239.84,239.83,17.76521415]
[1758354499514,2.91404475,239.84,239.83,18.44521415]
[1758354508214,0.1,239.84,239.83,18.44521415]
[1758354512014,0.1,239.84,239.82,13.59559401]
[1758354512216,0.1,239.84,239.82,18.44532368]
[1758354513333,0.1,239.84,239.83,14.27559401]
[1758354513532,0.1,239.84,239.83,18.44521415]
[1758354523657,0.1,239.84,239.83,17.76521415]
[1758354523947,0.1,239.84,239.83,18.44521415]
[1758354529638,0.8,239.84,239.83,13.59559401]
[1758354529955,3.61266893,239.84,239.81,13.59559401]
[1758354530179,3.51266893,239.83,239.81,13.59559401]
[1758354530363,0.7,239.82,239.81,13.59559401]
[1758354531839,2.81279727,239.83,239.81,13.59559401]
[1758354532139,0.7,239.83,239.81,13.59559401]
[1758354534556,0.8,239.84,239.81,13.59559401]
[1758354534853,2.81262064,239.83,239.81,13.59559401]
[1758354535055,0.1,239.84,239.82,0.68]
[1758354536042,0.1,239.84,239.81,17.76551974]
[1758354536260,0.1,239.84,239.83,0.67]
[1758354536468,2.91246862,239.84,239.83,0.67]
[1758354536960,2.91246862,239.84,239.83,4.83962014]
[1758354540263,0.1,239.84,239.83,4.83962014]
[1758354541759,0.1,239.84,239.83,6.08698728]
[1758354541941,0.1,239.84,239.81,4.15983576]
[1758354542149,0.66,239.83,239.82,13.59559401]